{"text_format":"1","workbook":"xlsx","n_sheets":6,"sheets":["Demande","Demande1","Demande02","Demande03","Demande04","RécapDemande"],"not_rendered":{"charts":0,"images":0,"macros":1,"external_links":0,"defined_names":4,"comments":0,"pivot_tables":0},"unopened":[],"bounds":{"document_bytes":16777216,"sheet_cells":100000,"rows_first":2000,"rows_last":500,"rows_between":2000,"halvings":0,"cell_chars":16384,"cell_head_chars":4096},"cells_cut":0,"cells_raw":0,"read":"whole","date_system":"1900"}

{"sheet":"Demande","index":0,"n_rows":43,"n_cols":8,"rows_kept":43,"cut":false,"hidden":false,"merged":[[0,0,0,3],[0,4,0,7],[11,4,11,7],[22,4,22,7],[33,4,33,7],[3,2,3,3],[5,2,5,3],[16,2,16,3],[27,2,27,3],[11,0,11,3],[38,2,38,3],[14,2,14,3],[25,2,25,3],[22,0,22,3],[33,0,33,3],[36,2,36,3]]}
["Demande de réintialisation de mot de passe",null,null,null,"Demande de réintialisation de mot de passe"]
["Conservez vos mots de passe dans un endroit sûr à la maison",null,null,null,"Conservez vos mots de passe dans un endroit sûr à la maison"]
[null,null,null,null,null,null,"Identifiant","Mot de passe"]
[]
[null,null,null,null,null,null,"Identifiant","Mot de passe"]
[]
[]
["Cochez la case ou les cases correspondantes à vos demandes.    Réponse au dos."]
["Nom Prénom",null,"DA","Ha"]
["Classe:",null,500]
[]
["Demande de réintialisation de mot de passe",null,null,null,"Demande de réintialisation de mot de passe"]
["Conservez vos mots de passe dans un endroit sûr à la maison",null,null,null,"Conservez vos mots de passe dans un endroit sûr à la maison"]
[null,null,null,null,null,null,"Identifiant","Mot de passe"]
[]
[null,null,null,null,null,null,"Identifiant","Mot de passe"]
[]
[]
["Cochez la case ou les cases correspondantes à vos demandes.    Réponse au dos."]
["Nom Prénom",null,"BRI","Lé"]
["Classe:",null,400]
[]
["Demande de réintialisation de mot de passe",null,null,null,"Demande de réintialisation de mot de passe"]
["Conservez vos mots de passe dans un endroit sûr à la maison",null,null,null,"Conservez vos mots de passe dans un endroit sûr à la maison"]
[null,null,null,null,null,null,"Identifiant","Mot de passe"]
[]
[null,null,null,null,null,null,"Identifiant","Mot de passe"]
[]
[]
["Cochez la case ou les cases correspondantes à vos demandes.    Réponse au dos."]
["Nom Prénom",null,"HAU","Da"]
["Classe:",null,400]
[]
["Demande de réintialisation de mot de passe",null,null,null,"Demande de réintialisation de mot de passe"]
["Conservez vos mots de passe dans un endroit sûr à la maison",null,null,null,"Conservez vos mots de passe dans un endroit sûr à la maison"]
[null,null,null,null,null,null,"Identifiant","Mot de passe"]
[]
[null,null,null,null,null,null,"Identifiant","Mot de passe"]
[]
[]
["Cochez la case ou les cases correspondantes à vos demandes.    Réponse au dos."]
["Nom Prénom",null,"OU","Eva"]
["Classe:",null,500]

{"sheet":"Demande1","index":1,"n_rows":43,"n_cols":9,"rows_kept":43,"cut":false,"hidden":false,"merged":[[0,0,0,3],[0,4,0,7],[3,2,3,3],[5,2,5,3],[11,0,11,3],[11,4,11,7],[38,2,38,3],[14,2,14,3],[16,2,16,3],[22,0,22,3],[22,4,22,7],[25,2,25,3],[27,2,27,3],[33,0,33,3],[33,4,33,7],[36,2,36,3]]}
["Demande de réintialisation de mot de passe",null,null,null,"Demande de réintialisation de mot de passe"]
["Conservez vos mots de passe dans un endroit sûr à la maison",null,null,null,"Conservez vos mots de passe dans un endroit sûr à la maison"]
[null,null,null,null,null,null,"Identifiant","Mot de passe"]
[]
[null,null,null,null,null,null,"Identifiant","Mot de passe"]
[]
[]
["Cochez la case ou les cases correspondantes à vos demandes.    Réponse au dos."]
["Nom Prénom",null,"CO","Seb"]
["Classe:",null,500]
[]
["Demande de réintialisation de mot de passe",null,null,null,"Demande de réintialisation de mot de passe"]
["Conservez vos mots de passe dans un endroit sûr à la maison",null,null,null,"Conservez vos mots de passe dans un endroit sûr à la maison"]
[null,null,null,null,null,null,"Identifiant","Mot de passe"]
[]
[null,null,null,null,null,null,"Identifiant","Mot de passe"]
[]
[null,null,null,null,null,null,null,null,"amiralserge@aol.com"]
["Cochez la case ou les cases correspondantes à vos demandes.    Réponse au dos."]
["Nom Prénom",null,"KEI","Ma"]
["Classe:",null,500]
[]
["Demande de réintialisation de mot de passe",null,null,null,"Demande de réintialisation de mot de passe"]
["Conservez vos mots de passe dans un endroit sûr à la maison",null,null,null,"Conservez vos mots de passe dans un endroit sûr à la maison"]
[null,null,null,null,null,null,"Identifiant","Mot de passe"]
[]
[null,null,null,null,null,null,"Identifiant","Mot de passe"]
[]
[]
["Cochez la case ou les cases correspondantes à vos demandes.    Réponse au dos."]
["Nom Prénom",null,"GAL","Lan"]
["Classe:",null,500]
[]
["Demande de réintialisation de mot de passe",null,null,null,"Demande de réintialisation de mot de passe"]
["Conservez vos mots de passe dans un endroit sûr à la maison",null,null,null,"Conservez vos mots de passe dans un endroit sûr à la maison"]
[null,null,null,null,null,null,"Identifiant","Mot de passe"]
[]
[null,null,null,null,null,null,"Identifiant","Mot de passe"]
[]
[]
["Cochez la case ou les cases correspondantes à vos demandes.    Réponse au dos."]
["Nom Prénom",null,"ROD","Ili"]
["Classe:",null,400]

{"sheet":"Demande02","index":2,"n_rows":43,"n_cols":9,"rows_kept":43,"cut":false,"hidden":false,"merged":[[38,2,38,3],[14,2,14,3],[16,2,16,3],[22,0,22,3],[22,4,22,7],[25,2,25,3],[27,2,27,3],[33,0,33,3],[33,4,33,7],[36,2,36,3],[0,0,0,3],[0,4,0,7],[3,2,3,3],[5,2,5,3],[11,0,11,3],[11,4,11,7]]}
["Demande de réintialisation de mot de passe",null,null,null,"Demande de réintialisation de mot de passe"]
["Conservez vos mots de passe dans un endroit sûr à la maison",null,null,null,"Conservez vos mots de passe dans un endroit sûr à la maison",null,null,null,"amiralserge@aol.com"]
[null,null,null,null,null,null,"Identifiant","Mot de passe"]
[]
[null,null,null,null,null,null,"Identifiant","Mot de passe"]
[]
[]
["Cochez la case ou les cases correspondantes à vos demandes.    Réponse au dos."]
["Nom Prénom",null,"DIA","Eli"]
["Classe:",null,400]
[]
["Demande de réintialisation de mot de passe",null,null,null,"Demande de réintialisation de mot de passe"]
["Conservez vos mots de passe dans un endroit sûr à la maison",null,null,null,"Conservez vos mots de passe dans un endroit sûr à la maison"]
[null,null,null,null,null,null,"Identifiant","Mot de passe"]
[]
[null,null,null,null,null,null,"Identifiant","Mot de passe"]
[]
[]
["Cochez la case ou les cases correspondantes à vos demandes.    Réponse au dos."]
["Nom Prénom",null,"ZAG","Mir"]
["Classe:",null,400]
[]
["Demande de réintialisation de mot de passe",null,null,null,"Demande de réintialisation de mot de passe"]
["Conservez vos mots de passe dans un endroit sûr à la maison",null,null,null,"Conservez vos mots de passe dans un endroit sûr à la maison"]
[null,null,null,null,null,null,"Identifiant","Mot de passe"]
[]
[null,null,null,null,null,null,"Identifiant","Mot de passe"]
[]
[]
["Cochez la case ou les cases correspondantes à vos demandes.    Réponse au dos."]
["Nom Prénom",null,"PER","Kyl"]
["Classe:",null,400]
[]
["Demande de réintialisation de mot de passe",null,null,null,"Demande de réintialisation de mot de passe"]
["Conservez vos mots de passe dans un endroit sûr à la maison",null,null,null,"Conservez vos mots de passe dans un endroit sûr à la maison"]
[null,null,null,null,null,null,"Identifiant","Mot de passe"]
[]
[null,null,null,null,null,null,"Identifiant","Mot de passe"]
[]
[]
["Cochez la case ou les cases correspondantes à vos demandes.    Réponse au dos."]
["Nom Prénom",null,"KOU","Sca"]
["Classe:",null,400]

{"sheet":"Demande03","index":3,"n_rows":43,"n_cols":8,"rows_kept":43,"cut":false,"hidden":false,"merged":[[38,2,38,3],[14,2,14,3],[16,2,16,3],[22,0,22,3],[22,4,22,7],[25,2,25,3],[27,2,27,3],[33,0,33,3],[33,4,33,7],[36,2,36,3],[0,0,0,3],[0,4,0,7],[3,2,3,3],[5,2,5,3],[11,0,11,3],[11,4,11,7]]}
["Demande de réintialisation de mot de passe",null,null,null,"Demande de réintialisation de mot de passe"]
["Conservez vos mots de passe dans un endroit sûr à la maison",null,null,null,"Conservez vos mots de passe dans un endroit sûr à la maison"]
[null,null,null,null,null,null,"Identifiant","Mot de passe"]
[]
[null,null,null,null,null,null,"Identifiant","Mot de passe"]
[]
[]
["Cochez la case ou les cases correspondantes à vos demandes.    Réponse au dos."]
["Nom Prénom",null,"NATI","Tri"]
["Classe:",null,400]
[]
["Demande de réintialisation de mot de passe",null,null,null,"Demande de réintialisation de mot de passe"]
["Conservez vos mots de passe dans un endroit sûr à la maison",null,null,null,"Conservez vos mots de passe dans un endroit sûr à la maison"]
[null,null,null,null,null,null,"Identifiant","Mot de passe"]
[]
[null,null,null,null,null,null,"Identifiant","Mot de passe"]
[]
[]
["Cochez la case ou les cases correspondantes à vos demandes.    Réponse au dos."]
["Nom Prénom",null,"DEL","Dor"]
["Classe:",null,400]
[]
["Demande de réintialisation de mot de passe",null,null,null,"Demande de réintialisation de mot de passe"]
["Conservez vos mots de passe dans un endroit sûr à la maison",null,null,null,"Conservez vos mots de passe dans un endroit sûr à la maison"]
[null,null,null,null,null,null,"Identifiant","Mot de passe"]
[]
[null,null,null,null,null,null,"Identifiant","Mot de passe"]
[]
[]
["Cochez la case ou les cases correspondantes à vos demandes.    Réponse au dos."]
["Nom Prénom",null,"KON","Fat"]
["Classe:",null,400]
[]
["Demande de réintialisation de mot de passe",null,null,null,"Demande de réintialisation de mot de passe"]
["Conservez vos mots de passe dans un endroit sûr à la maison",null,null,null,"Conservez vos mots de passe dans un endroit sûr à la maison"]
[null,null,null,null,null,null,"Identifiant","Mot de passe"]
[]
[null,null,null,null,null,null,"Identifiant","Mot de passe"]
[]
[]
["Cochez la case ou les cases correspondantes à vos demandes.    Réponse au dos."]
["Nom Prénom",null,"RIV","Sim"]
["Classe:",null,400]

{"sheet":"Demande04","index":4,"n_rows":43,"n_cols":9,"rows_kept":43,"cut":false,"hidden":false,"merged":[[0,0,0,3],[0,4,0,7],[3,2,3,3],[5,2,5,3],[11,0,11,3],[11,4,11,7],[38,2,38,3],[14,2,14,3],[16,2,16,3],[22,0,22,3],[22,4,22,7],[25,2,25,3],[27,2,27,3],[33,0,33,3],[33,4,33,7],[36,2,36,3]]}
["Demande de réintialisation de mot de passe",null,null,null,"Demande de réintialisation de mot de passe"]
["Conservez vos mots de passe dans un endroit sûr à la maison",null,null,null,"Conservez vos mots de passe dans un endroit sûr à la maison"]
[null,null,null,null,null,null,"Identifiant","Mot de passe"]
[]
[null,null,null,null,null,null,"Identifiant","Mot de passe"]
[]
[]
["Cochez la case ou les cases correspondantes à vos demandes.    Réponse au dos."]
["Nom Prénom",null,"MAR","Tin"]
["Classe:",null,402]
[]
["Demande de réintialisation de mot de passe",null,null,null,"Demande de réintialisation de mot de passe"]
["Conservez vos mots de passe dans un endroit sûr à la maison",null,null,null,"Conservez vos mots de passe dans un endroit sûr à la maison"]
[null,null,null,null,null,null,"Identifiant","Mot de passe"]
[]
[null,null,null,null,null,null,"Identifiant","Mot de passe"]
[]
[null,null,null,null,null,null,null,null,"amiralserge@aol.com"]
["Cochez la case ou les cases correspondantes à vos demandes.    Réponse au dos."]
["Nom Prénom"]
["Classe:"]
[]
["Demande de réintialisation de mot de passe",null,null,null,"Demande de réintialisation de mot de passe"]
["Conservez vos mots de passe dans un endroit sûr à la maison",null,null,null,"Conservez vos mots de passe dans un endroit sûr à la maison"]
[null,null,null,null,null,null,"Identifiant","Mot de passe"]
[]
[null,null,null,null,null,null,"Identifiant","Mot de passe"]
[]
[]
["Cochez la case ou les cases correspondantes à vos demandes.    Réponse au dos."]
["Nom Prénom"]
["Classe:"]
[]
["Demande de réintialisation de mot de passe",null,null,null,"Demande de réintialisation de mot de passe"]
["Conservez vos mots de passe dans un endroit sûr à la maison",null,null,null,"Conservez vos mots de passe dans un endroit sûr à la maison"]
[null,null,null,null,null,null,"Identifiant","Mot de passe"]
[]
[null,null,null,null,null,null,"Identifiant","Mot de passe"]
[]
[]
["Cochez la case ou les cases correspondantes à vos demandes.    Réponse au dos."]
["Nom Prénom"]
["Classe:"]

{"sheet":"RécapDemande","index":5,"n_rows":21,"n_cols":6,"rows_kept":21,"cut":false,"hidden":false,"merged":[]}
["Nom","Prénom","Classe","Nom","Prénom","Classe"]
[{"$f":"Demande!C9","v":"DA"},{"$f":"Demande!D9","v":"Ha"},{"$f":"Demande!C10","v":500},"=Demande!F9","=Demande!G9","=Demande!C10"]
[{"$f":"Demande!C20","v":"BRI"},{"$f":"Demande!D20","v":"Lé"},{"$f":"Demande!C21","v":400},"=Demande!F20","=Demande!G20","=Demande!C21"]
[{"$f":"Demande!C31","v":"HAU"},{"$f":"Demande!D31","v":"Da"},{"$f":"Demande!C32","v":400},"=Demande!F31","=Demande!G31","=Demande!C32"]
[{"$f":"Demande!C42","v":"OU"},{"$f":"Demande!D42","v":"Eva"},{"$f":"Demande!C43","v":500},"=Demande!F42","=Demande!G42","=Demande!C43"]
[{"$f":"Demande1!C9","v":"CO"},{"$f":"Demande1!D9","v":"Seb"},{"$f":"Demande1!C10","v":500},"=Demande1!F9","=Demande1!G9","=Demande1!C10"]
[{"$f":"Demande1!C20","v":"KEI"},{"$f":"Demande1!D20","v":"Ma"},{"$f":"Demande1!C21","v":500},"=Demande1!F20","=Demande1!G20","=Demande1!C21"]
[{"$f":"Demande1!C31","v":"GAL"},{"$f":"Demande1!D31","v":"Lan"},{"$f":"Demande1!C32","v":500},"=Demande1!F31","=Demande1!G31","=Demande1!C32"]
[{"$f":"Demande1!C42","v":"ROD"},{"$f":"Demande1!D42","v":"Ili"},{"$f":"Demande1!C43","v":400},"=Demande1!F42","=Demande1!G42","=Demande1!C43"]
[{"$f":"Demande02!C9","v":"DIA"},{"$f":"Demande02!D9","v":"Eli"},{"$f":"Demande02!C10","v":400},"=Demande02!F9","=Demande02!G9","=Demande02!C10"]
[{"$f":"Demande02!C20","v":"ZAG"},{"$f":"Demande02!D20","v":"Mir"},{"$f":"Demande02!C21","v":400},"=Demande02!F20","=Demande02!G20","=Demande02!C21"]
[{"$f":"Demande02!C31","v":"PER"},{"$f":"Demande02!D31","v":"Kyl"},{"$f":"Demande02!C32","v":400},"=Demande02!F31","=Demande02!G31","=Demande02!C32"]
[{"$f":"Demande02!C42","v":"KOU"},{"$f":"Demande02!D42","v":"Sca"},{"$f":"Demande02!C43","v":400},"=Demande02!F42","=Demande02!G42","=Demande02!C43"]
[{"$f":"Demande03!$C$9","v":"NATI"},{"$f":"Demande03!$D$9","v":"Tri"},{"$f":"Demande03!C10","v":400},"=Demande03!C9","=Demande03!D9","=Demande03!C10"]
[{"$f":"Demande03!$C$20","v":"DEL"},{"$f":"Demande03!$D$20","v":"Dor"},{"$f":"Demande03!C21","v":400},"=Demande03!C20","=Demande03!D20","=Demande03!C21"]
[{"$f":"Demande03!$C$31","v":"KON"},{"$f":"Demande03!$D$31","v":"Fat"},{"$f":"Demande03!C32","v":400},"=Demande03!C31","=Demande03!D31","=Demande03!C32"]
[{"$f":"Demande03!$C$42","v":"RIV"},{"$f":"Demande03!$D$42","v":"Sim"},{"$f":"Demande03!C43","v":400},"=Demande03!C42","=Demande03!D42","=Demande03!C43"]
[{"$f":"Demande04!C9","v":"MAR"},{"$f":"Demande04!D9","v":"Tin"},{"$f":"Demande04!C10","v":402},"=Demande04!F9","=Demande04!G9","=Demande04!C10"]
[{"$f":"Demande04!C20","v":0},{"$f":"Demande04!D20","v":0},{"$f":"Demande04!C21","v":0},"=Demande04!C20","=Demande04!D20","=Demande04!C21"]
[{"$f":"Demande04!C31","v":0},{"$f":"Demande04!D31","v":0},{"$f":"Demande04!C32","v":0},"=Demande04!C31","=Demande04!D31","=Demande04!C32"]
[{"$f":"Demande04!C42","v":0},{"$f":"Demande04!D42","v":0},{"$f":"Demande04!C43","v":0},"=Demande04!C42","=Demande04!D42","=Demande04!C43"]